fUSD/lending_fUSD_20251123
["ID","MTS","AMOUNT","RATE_DAILY","PERIOD"]
[394778396,1763938248700,-150.0,0.00040192,2]
[394778397,1763938248713,-150.0,0.00040192,2]
[394778398,1763938248722,-169.71,0.00040192,2]
[394778399,1763938248731,-150.0,0.00040192,2]
[394778400,1763938248741,-150.0,0.00040192,2]
[394778401,1763938248751,-169.71,0.00040192,2]
[394778402,1763938248760,-150.0,0.00040192,2]
[394778403,1763938248770,-150.0,0.00040192,2]
[394778404,1763938248779,-169.71,0.00040192,2]
[394778405,1763938248789,-150.0,0.00040192,2]
[394778406,1763938248799,-417.4,0.00040192,2]
[394778407,1763938248808,-551.04,0.00040192,2]
[394778408,1763938248818,-150.0,0.00040192,2]
[394778409,1763938248827,-150.0,0.00040192,2]
[394778410,1763938248837,-417.4,0.00040192,2]
[394778411,1763938248846,-169.71,0.00040192,2]
[394778412,1763938248857,-551.04,0.00040192,2]
[394778413,1763938248866,-150.0,0.00040192,2]
[394778414,1763938248876,-169.71,0.00040192,2]
[394778415,1763938248885,-150.0,0.00040192,2]
[394778416,1763938248895,-417.4,0.00040192,2]
[394778417,1763938248905,-150.0,0.00040192,2]
[394778418,1763938248914,-169.71,0.00040192,2]
[394778419,1763938248924,-551.04,0.00040192,2]
[394778420,1763938248933,-150.0,0.00040192,2]
[394778421,1763938248943,-150.0,0.00040192,2]
[394778422,1763938248952,-150.0,0.00040192,2]
[394778423,1763938248961,-417.4,0.00040192,2]
[394778424,1763938248971,-177.6,0.00040192,2]
[394778425,1763938248981,-551.04,0.00040192,2]
[394778426,1763938248990,-150.0,0.00040192,2]
[394778427,1763938249001,-551.04,0.00040192,2]
[394778428,1763938249012,-177.6,0.00040192,2]
[394778429,1763938249022,-177.6,0.00040192,2]
[394778430,1763938249031,-162.49,0.000402,14]
[394778431,1763938249042,-744.0,0.00040209,20]
[394778432,1763938249051,-1100.0,0.0004026,2]
[394778433,1763938249060,-1924.0,0.000403,2]
[394778434,1763938249070,-500.0,0.00040346,8]
[394778435,1763938249080,-500.0,0.00040346,8]
[394778436,1763938249091,-1359.6,0.00040346,8]
[394778437,1763938249100,-500.0,0.00040346,8]
[394778438,1763938249110,-1193.12,0.00040346,8]
[394778439,1763938249119,-500.0,0.00040346,8]
[394778440,1763938249129,-500.0,0.00040346,8]
[394778441,1763938249139,-193.61026998,0.00040346,8]
[394778442,1763938249150,-509.02,0.00040346,8]
[394778443,1763938249161,-217.83804072,0.00040379,2]
[394778444,1763938249171,-500.0,0.00040379,120]
[394778445,1763938249181,-500.0,0.0004043,8]
[394778446,1763938249191,-500.0,0.0004043,8]
[394778447,1763938249200,-597.44863288,0.0004043,8]
[394778448,1763938249209,-500.0,0.0004043,8]
[394778449,1763938249218,-500.0,0.0004043,8]
[394778450,1763938249227,-500.0,0.0004043,8]
[394778451,1763938249237,-1000.0,0.00040443,3]
[394778452,1763938249246,-182.02,0.00040467,14]
[394778453,1763938249257,-402.62177573,0.00040527,5]
[394778454,1763938249267,-292.17,0.00040572,14]
[394778455,1763938249278,-744.0,0.00040607,20]
[394778456,1763938249288,-500.0,0.0004062,8]
[394778457,1763938249298,-500.0,0.0004062,8]
[394778458,1763938249308,-1359.6,0.0004062,8]
[394778459,1763938249317,-500.0,0.0004062,8]
[394778460,1763938249326,-1193.12,0.0004062,8]
[394778461,1763938249336,-500.0,0.0004062,8]
[394778462,1763938249349,-500.0,0.0004062,8]
[394778463,1763938249360,-509.02,0.0004062,8]
[394778464,1763938249370,-264.24289607,0.00040658,120]
[394778465,1763938249380,-1000.0,0.00040671,3]
[394778466,1763938249389,-200.0,0.00040672,20]
[394778467,1763938249399,-191.91,0.000407,30]
[394778468,1763938249408,-1237.37352836,0.00040711,2]
[394778469,1763938249418,-1000.0,0.0004072,3]
[394778470,1763938249427,-217.83804072,0.00040737,2]
[394778471,1763938249436,-2000.0,0.00040795,3]
[394778472,1763938249447,-291.40517098,0.00040798,102]
[394778473,1763938249459,-1000.0,0.00040799,3]
[394778474,1763938249468,-282.96407984,0.00040858,8]
[394778475,1763938249478,-211.53687072,0.00040879,13]
[394778476,1763938249487,-500.0,0.00040894,8]
[394778477,1763938249498,-500.0,0.00040894,8]
[394778478,1763938249508,-1359.6,0.00040894,8]
[394778479,1763938249518,-500.0,0.00040894,8]
[394778480,1763938249530,-1193.12,0.00040894,8]
[394778481,1763938249540,-500.0,0.00040894,8]
[394778482,1763938249550,-500.0,0.00040894,8]
[394778483,1763938249559,-509.02,0.00040894,8]
[394778484,1763938249569,-999.0,0.00040899,120]
[394778485,1763938249579,-342.34755276,0.00040899,120]
[394778486,1763938249589,-500.0,0.00040899,2]
[394778487,1763938249599,-1000.0,0.00040899,3]
[394778488,1763938249608,-1000.0,0.00040899,3]
[394778489,1763938249617,-1000.0,0.00040899,3]
[394778490,1763938249627,-5333.0,0.000409,5]
[394778491,1763938249637,-1550.0,0.000409,7]
[394778492,1763938249647,-162.97117021,0.000409,15]
[394778493,1763938249657,-153.45389376,0.000409,16]
[394778494,1763938249667,-150.0,0.00040958,2]
[394778495,1763938249676,-150.0,0.00040958,2]
[394778496,1763938249686,-150.0,0.00040958,2]
[394778497,1763938249697,-150.0,0.00040958,2]
[394778498,1763938249706,-150.0,0.00040958,2]
[394778499,1763938249717,-150.0,0.00040958,2]
[394778500,1763938249727,-151.01919524,0.00040958,2]
[394778501,1763938249736,-150.0,0.00040958,2]
[394778502,1763938249746,-150.0,0.00040958,2]
[394778503,1763938249756,-150.0,0.00040958,2]
[394778504,1763938249765,-218.96607501,0.00040958,2]
[394778505,1763938249775,-500.0,0.00040958,2]
[394778506,1763938249784,-150.0,0.00040958,2]
[394778507,1763938249795,-152.93953339,0.00040958,2]
[394778508,1763938249804,-150.0,0.00040958,2]
[394778509,1763938249814,-150.0,0.00040958,2]
[394778510,1763938249823,-150.0,0.00040958,2]
[394778511,1763938249833,-500.0,0.00040958,2]
[394778512,1763938249842,-150.0,0.00040958,2]
[394778513,1763938249853,-150.0,0.00040958,2]
[394778514,1763938249863,-500.0,0.00040958,2]
[394778515,1763938249873,-150.0,0.00040958,2]
[394778516,1763938249882,-150.0,0.00040958,2]
[394778517,1763938249892,-150.0,0.00040958,2]
[394778518,1763938249902,-150.0,0.00040958,2]
[394778519,1763938249911,-150.0,0.00040958,2]
[394778520,1763938249921,-1941.0,0.00040958,2]
[394778521,1763938249931,-150.0,0.00040958,2]
[394778522,1763938249941,-500.0,0.00040958,2]
[394778523,1763938249951,-150.0,0.00040958,2]
[394778524,1763938249960,-150.0,0.00040958,2]
[394778525,1763938249970,-150.0,0.00040958,2]
[394778526,1763938249979,-150.0,0.00040958,2]
[394778527,1763938249989,-150.0,0.00040958,2]
[394778528,1763938249999,-150.0,0.00040958,2]
[394778529,1763938250008,-150.0,0.00040958,2]
[394778530,1763938250018,-150.0,0.00040958,2]
[394778531,1763938250027,-150.0,0.00040958,2]
[394778532,1763938250037,-500.0,0.00040958,2]
[394778533,1763938250046,-3058.3773379,0.0004097,2]
[394778534,1763938250057,-17573.5060507,0.0004097,2]
[394778535,1763938250068,-2596.7654298,0.0004097,2]
[394778536,1763938250078,-1000.0,0.00040979,3]
[394778537,1763938250087,-150.0,0.00040986,7]
[394778538,1763938250097,-150.0,0.00040986,7]
[394778539,1763938250110,-150.0,0.00040986,7]
[394778540,1763938250120,-150.0,0.00040986,7]
[394778541,1763938250130,-150.0,0.00040986,7]
[394778542,1763938250139,-150.0,0.00040986,7]
[394778543,1763938250149,-150.0,0.00040986,7]
[394778544,1763938250158,-1000.0,0.00040989,3]
[394778545,1763938250168,-199.92528655,0.0004099,7]
[394778546,1763938250180,-199.92528655,0.0004099,7]
[394778547,1763938250191,-1000.0,0.00040994,3]
[394778548,1763938250201,-1465.43215,0.00040995,7]
[394778549,1763938250211,-203.77090285,0.00040998,10]
[394778550,1763938250220,-322.6107,0.00040998,10]
[394778551,1763938250229,-4281.87122899,0.00040998,10]
[394778552,1763938250239,-600.0,0.00040998,30]
[394778553,1763938250248,-500.0,0.00040998,10]
[394778554,1763938250258,-500.0,0.00040998,10]
[394778555,1763938250269,-500.0,0.00040998,10]
[394778556,1763938250280,-1500.0,0.00040998,10]
[394778557,1763938250289,-500.0,0.00040998,10]
[394778558,1763938250299,-165.10430947,0.00040998,10]
[394778559,1763938250309,-1500.0,0.00040998,10]
[394778560,1763938250319,-500.0,0.00040998,10]
[394778561,1763938250329,-500.0,0.00040998,10]
[394778562,1763938250338,-1500.0,0.00040998,10]
[394778563,1763938250348,-500.0,0.00040998,10]
[394778564,1763938250358,-1000.0,0.00040998,10]
[394778565,1763938250368,-500.0,0.00040998,10]
[394778566,1763938250377,-500.0,0.00040998,10]
[394778567,1763938250388,-500.0,0.00040998,10]
[394778568,1763938250397,-574.12855637,0.00040998,10]
[394778569,1763938250407,-500.0,0.00040998,10]
[394778570,1763938250417,-620.0,0.00040998,10]
[394778571,1763938250426,-500.0,0.00040998,10]
[394778572,1763938250436,-500.0,0.00040998,10]
[394778573,1763938250445,-500.0,0.00040998,10]
[394778574,1763938250458,-500.0,0.00040998,10]
[394778575,1763938250468,-578.20924308,0.00040998,10]
[394778576,1763938250480,-500.0,0.00040998,10]
[394778577,1763938250491,-500.0,0.00040998,10]
[394778578,1763938250501,-500.0,0.00040998,10]
[394778579,1763938250510,-250.0,0.00040998,10]
[394778580,1763938250520,-500.0,0.00040998,10]
[394778581,1763938250531,-250.0,0.00040998,10]
[394778582,1763938250540,-500.0,0.00040998,10]
[394778583,1763938250550,-207.4,0.00040998,30]
[394778584,1763938250559,-250.0,0.00040998,10]
[394778585,1763938250569,-500.0,0.00040998,10]
[394778586,1763938250579,-500.0,0.00040998,10]
[394778587,1763938250588,-500.0,0.00040998,10]
[394778588,1763938250598,-500.0,0.00040998,10]
[394778589,1763938250608,-500.0,0.00040998,10]
[394778590,1763938250617,-500.0,0.00040998,10]
[394778591,1763938250627,-500.0,0.00040998,10]
[394778592,1763938250636,-500.0,0.00040998,10]
[394778593,1763938250646,-500.0,0.00040998,10]
[394778594,1763938250656,-500.0,0.00040998,10]
[394778595,1763938250666,-500.0,0.00040998,10]
[394778596,1763938250675,-500.0,0.00040998,10]
[394778597,1763938250685,-500.0,0.00040998,10]
[394778598,1763938250694,-500.0,0.00040998,10]
[394778599,1763938250704,-500.0,0.00040998,10]
[394778600,1763938250714,-500.0,0.00040998,10]
[394778601,1763938250724,-500.0,0.00040998,10]
[394778602,1763938250734,-500.0,0.00040998,10]
[394778603,1763938250745,-500.0,0.00040998,10]
[394778604,1763938250934,-500.0,0.00040998,10]
[394778605,1763938250947,-1000.0,0.00040998,3]
[394778606,1763938250957,-1000.0,0.00040998,3]
[394778607,1763938250966,-1000.0,0.00040998,3]
[394778608,1763938250976,-896.15879611,0.00040999,30]
[394778609,1763938250985,-300.0,0.00040999,10]
[394778610,1763938250994,-1000.0,0.00040999,120]
[394778611,1763938251003,-600.0,0.00040999,31]
[394778612,1763938251012,-573.61183346,0.00040999,31]
[394778613,1763938251021,-250.0,0.00040999,31]
[394778614,1763938251031,-600.0,0.00040999,41]
[394778615,1763938251040,-500.0,0.00040999,31]
[394778616,1763938251049,-1500.0,0.00040999,31]
[394778617,1763938251058,-500.0,0.00040999,31]
[394778618,1763938251067,-524.03564673,0.00040999,31]
[394778619,1763938251076,-151.0,0.00040999,31]
[394778620,1763938251086,-533.88981491,0.00040999,31]
[394778621,1763938251095,-500.0,0.00040999,31]
[394778622,1763938251104,-500.0,0.00040999,31]
[394778623,1763938251115,-250.0,0.00040999,31]
[394778624,1763938251123,-500.0,0.00040999,31]
[394778625,1763938251133,-500.0,0.00040999,2]
[394778626,1763938251142,-1000.0,0.00040999,2]
[394778627,1763938251151,-1000.0,0.00040999,3]
[394778628,1763938251160,-163.82453997,0.00041,31]
[394778629,1763938251168,-14713.72220576,0.00041,21]
[394778630,1763938251178,-331761.64447789,0.00041,2]
[394778631,1763938251187,-84242.59270885,0.00041,2]
[394778632,1763938251314,-311.98467859,0.00041,2]
[394778633,1763938251327,-524.9326699,0.00041,2]
[394778634,1763938251338,-855467.01165721,0.00041,2]
[394778635,1763938251352,-780.36415547,0.00041,2]
[394778636,1763938251363,-596.298,0.00041,2]
[394778637,1763938251378,-6688.80729789,0.00041,2]
[394778638,1763938251411,-2218.36783441,0.00041,2]
[394778639,1763938251450,-457.12166867,0.00040328,15]
[394778640,1763938251461,-1492.81581133,0.00041,2]
[394778641,1763938251477,-177.6,0.00040192,2]
[394778642,1763938251486,-1038.309,0.00041,2]
[394778643,1763938251499,-611.09090424,0.00041,2]
[394778644,1763938251510,-379.0853321,0.00041,2]
[394778645,1763938251521,-252921.46250796,0.00041,2]
[394778646,1763938251531,-186990.53749201,0.00041,2]
[394778647,1763938251544,-527.50353436,0.00041,2]
[394778648,1763938251566,-334.04637916,0.00040614,15]
[394778649,1763938251577,-123.07528951,0.00040614,15]
[394778650,1763938251586,-27998.84334865,0.00041,2]
[394778651,1763938251598,-938.43794,0.00041,2]
[394778652,1763938251609,-2006.62381347,0.00041,2]
[394778653,1763938251620,-639.22380711,0.00041,2]
[394778654,1763938335489,500.0,0.00017,30]
[394778655,1763938340098,500.0,0.00017,30]
[394778657,1763938567672,22968.464108,7.945e-05,2]
[394778658,1763938649952,2706.23257548,7.945e-05,2]
[394778659,1763938834137,-161.97,0.00017,2]
[394778691,1763939432310,-300.0,0.00022627,2]
[394778692,1763939432320,-33.32,0.00022627,2]
[394778693,1763939432332,-120.24864648,0.00022627,2]
[394778694,1763939432344,-5390.0,0.00025,3]
[394778695,1763939432353,-1200.0,0.00025544,2]
[394778696,1763939432363,-12923.45118692,0.00025545,2]
[394778697,1763939432372,-250.0,0.0002718,2]
[394778698,1763939432382,-1680.0,0.00027781,2]
[394778699,1763939432391,-300.0,0.00028029,119]
[394778700,1763939432400,-300.0,0.00028029,119]
[394778701,1763939432410,-300.0,0.00028029,119]
[394778702,1763939432420,-300.0,0.00028029,119]
[394778703,1763939432430,-300.0,0.00028029,119]
[394778704,1763939432439,-210.0,0.00030215,2]
[394778706,1763939432448,-194.29395016,0.00031567,2]
[394778708,1763939432457,-1000.0,0.00034339,3]
[394778710,1763939432466,-251.37467877,0.00037195,2]
[394778712,1763939432475,-12660.31654059,0.00037555,2]
[394778714,1763939432485,-1609.041,0.00037669,2]
[394778716,1763939432493,-822.0,0.00037669,2]
[394778718,1763939432504,-1256.0,0.00037669,2]
[394778720,1763939432513,-659.0,0.00037669,2]
[394778722,1763939432522,-2659.0,0.00037669,2]
[394778724,1763939432530,-561.0,0.00037669,2]
[394778726,1763939432539,-80821.09738074,0.00038327,2]
[394778735,1763939438066,-500.0,0.00038326,15]
[394778736,1763939438076,-268.21492624,0.00038326,15]
[394778737,1763939438085,-291.29032884,0.00038326,15]
[394778738,1763939438094,-500.0,0.00038326,15]
[394778739,1763939438105,-433.90485255,0.00038326,15]
[394778740,1763939438114,-500.0,0.00038326,2]
[394778741,1763939438128,-500.0,0.00038326,15]
[394778742,1763939438138,-441.54760435,0.00038326,15]
[394778743,1763939438147,-500.0,0.00038326,15]
[394778744,1763939438156,-500.0,0.00038326,15]
[394778745,1763939438165,-500.0,0.00038326,15]
[394778746,1763939438175,-500.0,0.00038326,15]
[394778747,1763939438184,-500.0,0.00038326,15]
[394778748,1763939438194,-500.0,0.00038326,15]
[394778749,1763939438203,-500.0,0.00038326,15]
[394778750,1763939438212,-2403.44798165,0.00038327,2]
[394778751,1763939438228,-1764.1624,0.00038327,2]
[394778789,1763939440116,-6496.0,0.00037669,2]
[394778791,1763939440126,-675011.29223761,0.00038327,2]
[394778792,1763939440135,-2005.403,0.00038356,51]
[394778794,1763939440146,-173.521,0.00038356,51]
[394778796,1763939440155,-880.58,0.00038356,2]
[394778797,1763939440165,-190.05878744,0.00038356,2]
[394778799,1763939440175,-600.0,0.00038356,30]
[394778801,1763939440184,-500.0,0.00038373,5]
[394778802,1763939440194,-500.0,0.00038373,5]
[394778804,1763939440203,-501.83220952,0.00038373,5]
[394778806,1763939440211,-500.0,0.00038373,5]
[394778807,1763939440220,-500.0,0.00038373,5]
[394778809,1763939440229,-500.0,0.00038373,2]
[394778811,1763939440238,-500.0,0.00038373,3]
[394778812,1763939440248,-200.7144154,0.00038373,5]
[394778814,1763939440257,-277.792036,0.00038373,5]
[394778816,1763939440266,-500.0,0.00038373,5]
[394778818,1763939440275,-500.0,0.00038427,8]
[394778819,1763939440285,-500.0,0.00038427,8]
[394778821,1763939440294,-492.18,0.00038427,8]
[394778823,1763939440304,-500.0,0.00038427,8]
[394778824,1763939440313,-500.0,0.00038427,8]
[394778826,1763939440322,-500.0,0.00038427,8]
[394778827,1763939440332,-500.0,0.00038427,8]
[394778829,1763939440341,-500.0,0.00038427,8]
[394778831,1763939440350,-500.0,0.00038427,8]
[394778833,1763939440359,-500.0,0.00038427,8]
[394778835,1763939440368,-500.0,0.00038427,8]
[394778836,1763939440377,-500.0,0.00038427,8]
[394778838,1763939440386,-500.0,0.00038427,8]
[394778840,1763939440395,-314.72143615,0.00038428,8]
[394778841,1763939440404,-570.07158315,0.00038428,8]
[394778843,1763939440414,-500.0,0.00038428,8]
[394778845,1763939440423,-526.2984519,0.00038428,8]
[394778846,1763939440432,-500.0,0.00038428,8]
[394778847,1763939440442,-500.0,0.00038428,8]
[394778848,1763939440451,-500.0,0.00038428,8]
[394778849,1763939440460,-500.0,0.00038428,8]
[394778851,1763939440469,-500.0,0.00038428,8]
[394778853,1763939440478,-500.0,0.00038428,8]
[394778855,1763939440487,-201.02,0.00038488,2]
[394778857,1763939440496,-648.0,0.00038617,20]
[394778858,1763939440506,-700.0,0.0003863,30]
[394778859,1763939440516,-200.0,0.00038635,2]
[394778860,1763939440526,-150.0,0.00038645,2]
[394778861,1763939440535,-500.0,0.00038645,2]
[394778862,1763939440544,-5000.0,0.00038669,120]
[394778863,1763939440553,-1100.0,0.000387,2]
[394778864,1763939440562,-500.0,0.00038701,8]
[394778865,1763939440571,-500.0,0.00038702,8]
[394778866,1763939440579,-1000.0,0.00038741,120]
[394778867,1763939440588,-1500.0,0.0003875,120]
[394778868,1763939440597,-500.0,0.0003875,5]
[394778869,1763939440606,-1100.0,0.00038761,2]
[394778870,1763939440616,-1000.0,0.00038858,2]
[394778871,1763939440625,-1100.0,0.00038861,2]
[394778872,1763939440635,-1100.0,0.00038861,3]
[394778873,1763939440643,-1100.0,0.00038961,2]
[394778874,1763939440652,-1100.0,0.00038961,3]
[394778875,1763939440661,-531.74885378,0.00038975,8]
[394778876,1763939440670,-155.27,0.00038994,2]
[394778877,1763939440679,-3278.98,0.00038994,2]
[394778878,1763939440689,-168.0,0.00039004,2]
[394778879,1763939440699,-648.0,0.00039015,20]
[394778880,1763939440707,-1100.0,0.00039061,2]
[394778881,1763939440716,-882.63,0.00039079,5]
[394778882,1763939440725,-168.0,0.00039115,2]
[394778883,1763939440734,-168.0,0.00039133,2]
[394778884,1763939440743,-1000.0,0.00039149,3]
[394778885,1763939440752,-1100.0,0.00039161,2]
[394778886,1763939440761,-1100.0,0.00039161,3]
[394778887,1763939440771,-156.24154383,0.00039166,8]
[394778888,1763939440780,-150.0,0.00039171,30]
[394778889,1763939440789,-942.39088881,0.00039171,30]
[394778890,1763939440798,-186.63512297,0.00039171,30]
[394778891,1763939440808,-150.0,0.00039171,30]
[394778892,1763939440817,-1133.84128557,0.00039171,30]
[394778893,1763939440826,-150.0,0.00039171,30]
[394778894,1763939440835,-2827.30720678,0.00039171,30]
[394778895,1763939440845,-150.0,0.00039171,30]
[394778896,1763939440855,-1104.41721277,0.00039171,30]
[394778897,1763939440864,-11048.78,0.00039251,2]
[394778898,1763939440873,-1100.0,0.00039261,2]
[394778899,1763939440882,-168.0,0.00039316,2]
[394778900,1763939440891,-235.21426783,0.00039316,2]
[394778901,1763939440900,-2378.83,0.00039324,2]
[394778902,1763939440909,-500.0,0.00039356,7]
[394778903,1763939440918,-800.0,0.00039356,7]
[394778904,1763939440927,-500.0,0.00039356,7]
[394778905,1763939440936,-1100.0,0.00039361,2]
[394778906,1763939440945,-648.0,0.00039413,20]
[394778907,1763939440954,-168.0,0.00039428,2]
[394778908,1763939440963,-1100.0,0.00039461,2]
[394778909,1763939440974,-1100.0,0.00039461,3]
[394778910,1763939440984,-150.0,0.00039484,2]
[394778911,1763939440994,-500.0,0.00039523,8]
[394778912,1763939441004,-168.0,0.00039526,2]
[394778913,1763939441014,-1100.0,0.0003956,2]
[394778914,1763939441024,-1100.0,0.0003956,3]
[394778915,1763939441033,-1100.0,0.0003966,2]
[394778916,1763939441043,-300.0,0.00039726,5]
[394778917,1763939441055,-1100.0,0.0003976,2]
[394778918,1763939441065,-187.656875,0.0003977,2]
[394778919,1763939441075,-648.0,0.00039811,20]
[394778920,1763939441084,-3435.0,0.00039859,2]
[394778921,1763939441094,-575.0,0.00039859,2]
[394778922,1763939441105,-617.899,0.00039859,2]
[394778923,1763939441114,-1319.0,0.00039859,2]
[394778924,1763939441124,-1100.0,0.0003986,2]
[394778925,1763939441133,-1100.0,0.0003996,2]
[394778926,1763939441143,-1100.0,0.0003996,3]
[394778927,1763939441152,-3000.0,0.0004,120]
[394778928,1763939441162,-701.46,0.00040055,2]
[394778929,1763939441171,-782.83,0.00040055,2]
[394778930,1763939441180,-479.01,0.00040055,2]
[394778931,1763939441188,-479.01,0.00040055,2]
[394778932,1763939441198,-479.01,0.00040055,2]
[394778933,1763939441207,-1100.0,0.0004006,2]
[394778934,1763939441216,-1100.0,0.0004006,3]
[394778935,1763939441226,-746.38678167,0.00040147,15]
[394778936,1763939441236,-1100.0,0.0004016,2]
[394778937,1763939441245,-1100.0,0.0004016,3]
[394778938,1763939441255,-800.0,0.00040178,7]
[394778939,1763939441264,-500.0,0.00040178,7]
[394778940,1763939441273,-648.0,0.00040209,20]
[394778941,1763939441283,-746.3867816,0.00040231,15]
[394778942,1763939441292,-500.0,0.00040246,15]
[394778943,1763939441302,-500.0,0.00040246,15]
[394778944,1763939441311,-500.0,0.00040246,15]
[394778945,1763939441319,-500.0,0.00040246,15]
[394778946,1763939441329,-500.0,0.00040246,15]
[394778947,1763939441338,-500.0,0.00040246,15]
[394778948,1763939441348,-500.0,0.00040246,15]
[394778949,1763939441358,-500.0,0.00040246,15]
[394778950,1763939441367,-182.86,0.00040247,2]
[394778951,1763939441377,-150.0,0.00040247,2]
[394778952,1763939441386,-551.04,0.00040247,2]
[394778953,1763939441396,-177.6,0.00040247,2]
[394778954,1763939441406,-150.0,0.00040247,2]
[394778955,1763939441416,-150.0,0.00040247,2]
[394778956,1763939441427,-220.57,0.00040247,2]
[394778957,1763939441437,-169.71,0.00040247,2]
[394778958,1763939441446,-150.0,0.00040247,2]
[394778959,1763939441455,-417.4,0.00040247,2]
[394778960,1763939441465,-177.6,0.00040247,2]
[394778961,1763939441474,-150.0,0.00040247,2]
[394778962,1763939441484,-551.04,0.00040247,2]
[394778963,1763939441493,-1211.3,0.00040247,2]
[394778964,1763939441503,-150.0,0.00040247,2]
[394778965,1763939441512,-417.4,0.00040247,2]
[394778966,1763939441522,-150.0,0.00040247,2]
[394778967,1763939441531,-169.71,0.00040247,2]
[394778968,1763939441540,-150.0,0.00040247,2]
[394778969,1763939441550,-150.0,0.00040247,2]
[394778970,1763939441559,-177.6,0.00040247,2]
[394778971,1763939441568,-169.71,0.00040247,2]
[394778972,1763939441578,-150.0,0.00040247,2]
[394778973,1763939441587,-417.4,0.00040247,2]
[394778974,1763939441596,-551.04,0.00040247,2]
[394778975,1763939441606,-551.04,0.00040247,2]
[394778976,1763939441616,-1211.3,0.00040247,2]
[394778977,1763939441625,-150.0,0.00040247,2]
[394778978,1763939441635,-150.0,0.00040247,2]
[394778979,1763939441644,-169.71,0.00040247,2]
[394778980,1763939441653,-177.6,0.00040247,2]
[394778981,1763939441662,-150.0,0.00040247,2]
[394778982,1763939441672,-417.4,0.00040247,2]
[394778983,1763939441681,-150.0,0.00040247,2]
[394778984,1763939441690,-150.0,0.00040247,2]
[394778985,1763939441699,-1211.3,0.00040247,2]
[394778986,1763939441709,-177.6,0.00040247,2]
[394778987,1763939441718,-169.71,0.00040247,2]
[394778988,1763939441727,-150.0,0.00040247,2]
[394778989,1763939441736,-551.04,0.00040247,2]
[394778990,1763939441746,-302.56,0.00040247,2]
[394778991,1763939441755,-710.9,0.00040247,2]
[394778992,1763939441764,-177.6,0.00040247,2]
[394778993,1763939441773,-212.55,0.00040247,2]
[394778994,1763939441782,-150.0,0.00040247,2]
[394778995,1763939441791,-1211.3,0.00040247,2]
[394778996,1763939441800,-417.4,0.00040247,2]
[394778997,1763939441809,-150.0,0.00040247,2]
[394778998,1763939441818,-150.0,0.00040247,2]
[394778999,1763939441827,-551.04,0.00040247,2]
[394779000,1763939441837,-150.0,0.00040247,2]
[394779001,1763939441848,-1211.3,0.00040247,2]
[394779002,1763939441857,-177.6,0.00040247,2]
[394779003,1763939441867,-417.4,0.00040247,2]
[394779004,1763939441876,-177.6,0.00040247,2]
[394779005,1763939441886,-150.0,0.00040247,2]
[394779006,1763939441895,-551.04,0.00040247,2]
[394779007,1763939441904,-1211.3,0.00040247,2]
[394779008,1763939441913,-150.0,0.00040247,2]
[394779009,1763939441922,-417.4,0.00040247,2]
[394779010,1763939441932,-551.04,0.00040247,2]